[Event "Live Chess"]
[Site "Chess.com"]
[Date "2010.12.05"]
[Round "-"]
[White "hipposcottimus"]
[Black "PaulJansen"]
[Result "0-1"]
[CurrentPosition "r3r1k1/6pp/p2R4/1p6/1Pb4B/P7/6PP/7K w - -"]
[Timezone "UTC"]
[ECO "B20"]
[ECOUrl "https://www.chess.com/openings/Sicilian-Defense"]
[UTCDate "2010.12.05"]
[UTCTime "00:29:56"]
[WhiteElo "1572"]
[BlackElo "1750"]
[TimeControl "60"]
[Termination "PaulJansen won on time"]
[StartTime "00:29:56"]
[EndDate "2010.12.05"]
[EndTime "00:32:10"]
[Link "https://www.chess.com/game/live/74123549"]

1. e4 {[%clk 0:01:00]} 1... c5 {[%clk 0:01:00]} 2. Bb5 {[%clk 0:00:57.9]} 2... a6 {[%clk 0:00:57.7]} 3. Be2 {[%clk 0:00:57.6]} 3... e6 {[%clk 0:00:56.8]} 4. Nf3 {[%clk 0:00:57.4]} 4... Be7 {[%clk 0:00:56.2]} 5. d4 {[%clk 0:00:57.1]} 5... d6 {[%clk 0:00:56.2]} 6. dxc5 {[%clk 0:00:56.1]} 6... dxc5 {[%clk 0:00:53.3]} 7. Nc3 {[%clk 0:00:55.8]} 7... Qxd1+ {[%clk 0:00:51.7]} 8. Bxd1 {[%clk 0:00:55.4]} 8... Nf6 {[%clk 0:00:51.5]} 9. O-O {[%clk 0:00:54.8]} 9... Nfd7 {[%clk 0:00:51.1]} 10. Re1 {[%clk 0:00:54.5]} 10... O-O {[%clk 0:00:51]} 11. Be2 {[%clk 0:00:53.5]} 11... e5 {[%clk 0:00:50.4]} 12. Bg5 {[%clk 0:00:53]} 12... f6 {[%clk 0:00:50.2]} 13. Bh4 {[%clk 0:00:51.1]} 13... Nc6 {[%clk 0:00:49.7]} 14. Bg3 {[%clk 0:00:50.8]} 14... Nd4 {[%clk 0:00:48.8]} 15. Nd5 {[%clk 0:00:50.3]} 15... Nxf3+ {[%clk 0:00:47.5]} 16. Bxf3 {[%clk 0:00:49.3]} 16... Bd6 {[%clk 0:00:47.5]} 17. c4 {[%clk 0:00:46.8]} 17... Nb6 {[%clk 0:00:45.1]} 18. a3 {[%clk 0:00:46.5]} 18... Nxc4 {[%clk 0:00:43.9]} 19. b3 {[%clk 0:00:44.6]} 19... Nd2 {[%clk 0:00:42]} 20. Re3 {[%clk 0:00:41]} 20... Nxf3+ {[%clk 0:00:40.3]} 21. Rxf3 {[%clk 0:00:40.7]} 21... Bg4 {[%clk 0:00:38.3]} 22. Re3 {[%clk 0:00:39.3]} 22... Be6 {[%clk 0:00:37.8]} 23. b4 {[%clk 0:00:38.7]} 23... c4 {[%clk 0:00:35.9]} 24. Rc1 {[%clk 0:00:34.5]} 24... b5 {[%clk 0:00:35.4]} 25. Nb6 {[%clk 0:00:32.4]} 25... Rab8 {[%clk 0:00:34.5]} 26. Nd5 {[%clk 0:00:27]} 26... f5 {[%clk 0:00:29.5]} 27. f4 {[%clk 0:00:19.5]} 27... fxe4 {[%clk 0:00:27.7]} 28. fxe5 {[%clk 0:00:18.1]} 28... Bxe5 {[%clk 0:00:23.5]} 29. Rxe4 {[%clk 0:00:17.1]} 29... Bd4+ {[%clk 0:00:22.5]} 30. Kh1 {[%clk 0:00:14]} 30... Bxd5 {[%clk 0:00:20.9]} 31. Rxd4 {[%clk 0:00:13.3]} 31... Be6 {[%clk 0:00:18.3]} 32. Rd6 {[%clk 0:00:12.2]} 32... Bf5 {[%clk 0:00:16.7]} 33. Rcd1 {[%clk 0:00:11.2]} 33... Bd3 {[%clk 0:00:15.4]} 34. Rd5 {[%clk 0:00:10]} 34... Ra8 {[%clk 0:00:14.7]} 35. Rc5 {[%clk 0:00:09.2]} 35... Rfd8 {[%clk 0:00:12.8]} 36. Re5 {[%clk 0:00:07.2]} 36... Re8 {[%clk 0:00:11.1]} 37. Rd5 {[%clk 0:00:05.4]} 37... Red8 {[%clk 0:00:09.9]} 38. Rc5 {[%clk 0:00:04.6]} 38... Re8 {[%clk 0:00:08.5]} 39. Rxc4 {[%clk 0:00:03.4]} 39... Bxc4 {[%clk 0:00:07.3]} 40. Bh4 {[%clk 0:00:02.8]} 40... Rf8 {[%clk 0:00:06.2]} 41. Rd6 {[%clk 0:00:02.1]} 41... Rfe8 {[%clk 0:00:05.2]} 0-1

[Event "Live Chess"]
[Site "Chess.com"]
[Date "2010.12.05"]
[Round "-"]
[White "hipposcottimus"]
[Black "Yehualashet"]
[Result "0-1"]
[CurrentPosition "3r2k1/2p2pp1/1p2p2p/p3P1n1/2P1R1P1/2Q3B1/PP3P1P/3q2K1 w - -"]
[Timezone "UTC"]
[ECO "B07"]
[ECOUrl "https://www.chess.com/openings/Pirc-Defense-Modern-Defense-Geller-System"]
[UTCDate "2010.12.05"]
[UTCTime "00:26:30"]
[WhiteElo "1567"]
[BlackElo "1577"]
[TimeControl "60"]
[Termination "Yehualashet won on time"]
[StartTime "00:26:30"]
[EndDate "2010.12.05"]
[EndTime "00:28:39"]
[Link "https://www.chess.com/game/live/74122873"]

1. e4 {[%clk 0:01:00]} 1... d6 {[%clk 0:01:00]} 2. Nf3 {[%clk 0:00:59.7]} 2... e6 {[%clk 0:00:59.6]} 3. d4 {[%clk 0:00:59.3]} 3... h6 {[%clk 0:00:59.3]} 4. c4 {[%clk 0:00:58.9]} 4... Nf6 {[%clk 0:00:58.9]} 5. Nc3 {[%clk 0:00:58.5]} 5... Be7 {[%clk 0:00:58.5]} 6. Bd3 {[%clk 0:00:57]} 6... O-O {[%clk 0:00:58]} 7. O-O {[%clk 0:00:56.3]} 7... b6 {[%clk 0:00:57.3]} 8. Re1 {[%clk 0:00:56]} 8... a5 {[%clk 0:00:56.8]} 9. e5 {[%clk 0:00:55.7]} 9... Nh7 {[%clk 0:00:54.3]} 10. Bf4 {[%clk 0:00:53.8]} 10... Bb7 {[%clk 0:00:51.7]} 11. Nd2 {[%clk 0:00:50.8]} 11... dxe5 {[%clk 0:00:50.4]} 12. dxe5 {[%clk 0:00:49.6]} 12... Nc6 {[%clk 0:00:47.9]} 13. Re3 {[%clk 0:00:49.1]} 13... Nd4 {[%clk 0:00:44.7]} 14. Be4 {[%clk 0:00:48.1]} 14... Bxe4 {[%clk 0:00:43]} 15. Rxe4 {[%clk 0:00:47.1]} 15... Nf5 {[%clk 0:00:42.1]} 16. g4 {[%clk 0:00:40.9]} 16... Nd4 {[%clk 0:00:36.7]} 17. Nb3 {[%clk 0:00:37.1]} 17... Nxb3 {[%clk 0:00:35.2]} 18. Qxb3 {[%clk 0:00:36.8]} 18... Qd3 {[%clk 0:00:32.7]} 19. Rd1 {[%clk 0:00:36.5]} 19... Qf3 {[%clk 0:00:29.9]} 20. Bg3 {[%clk 0:00:22.1]} 20... Ng5 {[%clk 0:00:26]} 21. Rf4 {[%clk 0:00:21.1]} 21... Qe3 {[%clk 0:00:22.1]} 22. Nb1 {[%clk 0:00:12.9]} 22... Qc5 {[%clk 0:00:20.9]} 23. Qc3 {[%clk 0:00:11.5]} 23... Rad8 {[%clk 0:00:19.1]} 24. Rxd8 {[%clk 0:00:09.6]} 24... Rxd8 {[%clk 0:00:19.1]} 25. Nd2 {[%clk 0:00:08.1]} 25... Nh7 {[%clk 0:00:13.4]} 26. Nf3 {[%clk 0:00:07.7]} 26... Bg5 {[%clk 0:00:12.5]} 27. Nxg5 {[%clk 0:00:06.6]} 27... Nxg5 {[%clk 0:00:12.5]} 28. Kg2 {[%clk 0:00:05.5]} 28... Qc6+ {[%clk 0:00:07.8]} 29. Kg1 {[%clk 0:00:03.3]} 29... Qd7 {[%clk 0:00:07.3]} 30. Re4 {[%clk 0:00:00.4]} 30... Qd1+ {[%clk 0:00:06.3]} 0-1

[Event "Live Chess"]
[Site "Chess.com"]
[Date "2010.12.05"]
[Round "-"]
[White "Yehualashet"]
[Black "hipposcottimus"]
[Result "0-1"]
[CurrentPosition "2r3k1/4Rp1p/1PN5/B4p2/4p3/4P3/1Q3PPP/1R4K1 w - -"]
[Timezone "UTC"]
[ECO "D00"]
[ECOUrl "https://www.chess.com/openings/Queens-Pawn-Opening-1...d5-2.e3"]
[UTCDate "2010.12.05"]
[UTCTime "00:23:22"]
[WhiteElo "1569"]
[BlackElo "1575"]
[TimeControl "60"]
[Termination "hipposcottimus won on time"]
[StartTime "00:23:22"]
[EndDate "2010.12.05"]
[EndTime "00:25:17"]
[Link "https://www.chess.com/game/live/74122188"]

1. d4 {[%clk 0:01:00]} 1... d5 {[%clk 0:01:00]} 2. e3 {[%clk 0:01:00]} 2... c6 {[%clk 0:00:59.7]} 3. c4 {[%clk 0:01:00]} 3... Nd7 {[%clk 0:00:59.4]} 4. b3 {[%clk 0:00:59.4]} 4... e6 {[%clk 0:00:58.1]} 5. Bb2 {[%clk 0:00:58.9]} 5... Ngf6 {[%clk 0:00:57.8]} 6. Nd2 {[%clk 0:00:58.5]} 6... Bb4 {[%clk 0:00:57.2]} 7. Nf3 {[%clk 0:00:57.7]} 7... dxc4 {[%clk 0:00:55]} 8. bxc4 {[%clk 0:00:54.6]} 8... c5 {[%clk 0:00:53.6]} 9. a3 {[%clk 0:00:52.8]} 9... Ba5 {[%clk 0:00:52.5]} 10. dxc5 {[%clk 0:00:50.1]} 10... Nxc5 {[%clk 0:00:51.1]} 11. Be2 {[%clk 0:00:48.2]} 11... Nd3+ {[%clk 0:00:50.5]} 12. Bxd3 {[%clk 0:00:46.5]} 12... Qxd3 {[%clk 0:00:50.2]} 13. Qe2 {[%clk 0:00:41.1]} 13... Qb3 {[%clk 0:00:49.8]} 14. Rb1 {[%clk 0:00:35.1]} 14... O-O {[%clk 0:00:48.4]} 15. O-O {[%clk 0:00:33.6]} 15... e5 {[%clk 0:00:47.8]} 16. Nxb3 {[%clk 0:00:32.4]} 16... e4 {[%clk 0:00:45.9]} 17. Nfd4 {[%clk 0:00:30.9]} 17... Bg4 {[%clk 0:00:45]} 18. Qd1 {[%clk 0:00:27.4]} 18... Rfe8 {[%clk 0:00:43.1]} 19. Qc2 {[%clk 0:00:25.5]} 19... Rad8 {[%clk 0:00:42.8]} 20. Nxa5 {[%clk 0:00:23.6]} 20... b6 {[%clk 0:00:41.4]} 21. Nac6 {[%clk 0:00:22]} 21... Rc8 {[%clk 0:00:39]} 22. Bc3 {[%clk 0:00:19.6]} 22... b5 {[%clk 0:00:38.6]} 23. cxb5 {[%clk 0:00:18]} 23... a6 {[%clk 0:00:38.3]} 24. a4 {[%clk 0:00:16.9]} 24... axb5 {[%clk 0:00:36.9]} 25. axb5 {[%clk 0:00:16.9]} 25... Rc7 {[%clk 0:00:36.3]} 26. b6 {[%clk 0:00:16.9]} 26... Rb7 {[%clk 0:00:35.8]} 27. Ba5 {[%clk 0:00:14.3]} 27... Nd7 {[%clk 0:00:32.2]} 28. Rfd1 {[%clk 0:00:11.4]} 28... Reb8 {[%clk 0:00:26.8]} 29. Rd2 {[%clk 0:00:10.2]} 29... Rc8 {[%clk 0:00:25.7]} 30. Qb2 {[%clk 0:00:08]} 30... Bf5 {[%clk 0:00:25.3]} 31. Nxf5 {[%clk 0:00:05.6]} 31... g6 {[%clk 0:00:24.5]} 32. Rxd7 {[%clk 0:00:04.5]} 32... gxf5 {[%clk 0:00:23.4]} 33. Rxb7 {[%clk 0:00:03.1]} 33... Re8 {[%clk 0:00:23.1]} 34. Re7 {[%clk 0:00:01.8]} 34... Rc8 {[%clk 0:00:21]} 0-1

[Event "Live Chess"]
[Site "Chess.com"]
[Date "2010.12.05"]
[Round "-"]
[White "hipposcottimus"]
[Black "classicmusic0505"]
[Result "0-1"]
[CurrentPosition "3Q4/1R3p1k/7q/3p3p/2pP3K/6R1/5P1P/4r3 w - -"]
[Timezone "UTC"]
[ECO "B20"]
[ECOUrl "https://www.chess.com/openings/Sicilian-Defense-Bowdler-Attack-2...e6"]
[UTCDate "2010.12.05"]
[UTCTime "00:20:39"]
[WhiteElo "1567"]
[BlackElo "1751"]
[TimeControl "60"]
[Termination "classicmusic0505 won on time"]
[StartTime "00:20:39"]
[EndDate "2010.12.05"]
[EndTime "00:22:49"]
[Link "https://www.chess.com/game/live/74121650"]

1. e4 {[%clk 0:01:00]} 1... c5 {[%clk 0:01:00]} 2. Bc4 {[%clk 0:00:58.7]} 2... e6 {[%clk 0:01:00]} 3. Nf3 {[%clk 0:00:58]} 3... d5 {[%clk 0:00:59.2]} 4. exd5 {[%clk 0:00:56.2]} 4... exd5 {[%clk 0:00:59.2]} 5. Bb5+ {[%clk 0:00:55.8]} 5... Nc6 {[%clk 0:00:59.2]} 6. d3 {[%clk 0:00:54.7]} 6... a6 {[%clk 0:00:58.1]} 7. Nbd2 {[%clk 0:00:54.5]} 7... axb5 {[%clk 0:00:57]} 8. O-O {[%clk 0:00:54.2]} 8... Nf6 {[%clk 0:00:55.7]} 9. Re1+ {[%clk 0:00:54]} 9... Be7 {[%clk 0:00:55.4]} 10. Nb3 {[%clk 0:00:49.5]} 10... O-O {[%clk 0:00:53.7]} 11. d4 {[%clk 0:00:47.1]} 11... c4 {[%clk 0:00:51.5]} 12. Nbd2 {[%clk 0:00:46.1]} 12... b4 {[%clk 0:00:50.3]} 13. c3 {[%clk 0:00:45.3]} 13... bxc3 {[%clk 0:00:49.1]} 14. bxc3 {[%clk 0:00:43.9]} 14... Ne4 {[%clk 0:00:46.7]} 15. a4 {[%clk 0:00:43.6]} 15... Nxd2 {[%clk 0:00:45.5]} 16. Qxd2 {[%clk 0:00:43.4]} 16... Bg4 {[%clk 0:00:43.2]} 17. Ba3 {[%clk 0:00:43.1]} 17... Bxf3 {[%clk 0:00:42.4]} 18. gxf3 {[%clk 0:00:41.8]} 18... Bxa3 {[%clk 0:00:41.1]} 19. Rxa3 {[%clk 0:00:41.6]} 19... Qh4 {[%clk 0:00:39.8]} 20. Kh1 {[%clk 0:00:40.3]} 20... Nxd4 {[%clk 0:00:38.8]} 21. cxd4 {[%clk 0:00:36.3]} 21... Qh5 {[%clk 0:00:35.9]} 22. Rc3 {[%clk 0:00:36]} 22... Qg6 {[%clk 0:00:34.6]} 23. Rg1 {[%clk 0:00:34]} 23... Qf5 {[%clk 0:00:32.8]} 24. f4 {[%clk 0:00:29.3]} 24... Rfd8 {[%clk 0:00:31.5]} 25. Qe3 {[%clk 0:00:28.6]} 25... Rxa4 {[%clk 0:00:30.4]} 26. Qg3 {[%clk 0:00:27.3]} 26... g6 {[%clk 0:00:28.6]} 27. Qh4 {[%clk 0:00:23.2]} 27... Re8 {[%clk 0:00:26.2]} 28. Rgg3 {[%clk 0:00:21.5]} 28... Re4 {[%clk 0:00:24.9]} 29. Rh3 {[%clk 0:00:20.1]} 29... Ra1+ {[%clk 0:00:22.9]} 30. Kg2 {[%clk 0:00:17.9]} 30... h5 {[%clk 0:00:21.6]} 31. Qd8+ {[%clk 0:00:16.2]} 31... Kg7 {[%clk 0:00:20.3]} 32. Rb3 {[%clk 0:00:14.5]} 32... Qxf4 {[%clk 0:00:19.4]} 33. Rxb7 {[%clk 0:00:13]} 33... Qg4+ {[%clk 0:00:18.5]} 34. Rg3 {[%clk 0:00:11.3]} 34... Rg1+ {[%clk 0:00:15.9]} 35. Kxg1 {[%clk 0:00:09.4]} 35... Re1+ {[%clk 0:00:15.2]} 36. Kg2 {[%clk 0:00:09.2]} 36... Qe4+ {[%clk 0:00:14.2]} 37. Kh3 {[%clk 0:00:07.5]} 37... Qe6+ {[%clk 0:00:12.2]} 38. Kh4 {[%clk 0:00:04.1]} 38... g5+ {[%clk 0:00:11]} 39. Kxg5 {[%clk 0:00:02.7]} 39... Qh6+ {[%clk 0:00:08.9]} 40. Kh4+ {[%clk 0:00:01.6]} 40... Kh7 {[%clk 0:00:08.4]} 0-1

[Event "Live Chess"]
[Site "Chess.com"]
[Date "2010.12.04"]
[Round "-"]
[White "hipposcottimus"]
[Black "kaiserIV"]
[Result "0-1"]
[CurrentPosition "3r4/p3q1k1/6p1/2p5/3np3/6P1/P3R3/4R1K1 w - -"]
[Timezone "UTC"]
[ECO "B21"]
[ECOUrl "https://www.chess.com/openings/Sicilian-Defense-Smith-Morra-Gambit"]
[UTCDate "2010.12.04"]
[UTCTime "23:44:04"]
[WhiteElo "1567"]
[BlackElo "1605"]
[TimeControl "60"]
[Termination "kaiserIV won on time"]
[StartTime "23:44:04"]
[EndDate "2010.12.04"]
[EndTime "23:46:25"]
[Link "https://www.chess.com/game/live/74113580"]

1. e4 {[%clk 0:01:00]} 1... c5 {[%clk 0:01:00]} 2. d4 {[%clk 0:00:58.1]} 2... Nc6 {[%clk 0:01:00]} 3. dxc5 {[%clk 0:00:55.8]} 3... Qa5+ {[%clk 0:00:58.6]} 4. Bd2 {[%clk 0:00:53.5]} 4... Qxc5 {[%clk 0:00:57.6]} 5. Nc3 {[%clk 0:00:52.3]} 5... e5 {[%clk 0:00:53.3]} 6. Nf3 {[%clk 0:00:52]} 6... Be7 {[%clk 0:00:51.6]} 7. Be3 {[%clk 0:00:51.8]} 7... Qb4 {[%clk 0:00:48.6]} 8. Bb5 {[%clk 0:00:51.6]} 8... d6 {[%clk 0:00:46.7]} 9. Bxc6+ {[%clk 0:00:50.8]} 9... bxc6 {[%clk 0:00:46.1]} 10. Bd2 {[%clk 0:00:50.5]} 10... Qxb2 {[%clk 0:00:44.7]} 11. O-O {[%clk 0:00:50.2]} 11... Nf6 {[%clk 0:00:42.1]} 12. Na4 {[%clk 0:00:47.7]} 12... Qa3 {[%clk 0:00:40.2]} 13. c3 {[%clk 0:00:44.8]} 13... Bd7 {[%clk 0:00:37.4]} 14. Re1 {[%clk 0:00:44.3]} 14... O-O {[%clk 0:00:35.5]} 15. Be3 {[%clk 0:00:36.2]} 15... c5 {[%clk 0:00:34.4]} 16. Bc1 {[%clk 0:00:31.8]} 16... Qxa4 {[%clk 0:00:31.1]} 17. Qd2 {[%clk 0:00:31.5]} 17... Qc6 {[%clk 0:00:29.1]} 18. Ng5 {[%clk 0:00:31.2]} 18... Ng4 {[%clk 0:00:25.6]} 19. h3 {[%clk 0:00:27.5]} 19... Bxg5 {[%clk 0:00:22.7]} 20. Qxg5 {[%clk 0:00:27.1]} 20... Nf6 {[%clk 0:00:21]} 21. Qf5 {[%clk 0:00:25.3]} 21... Bxf5 {[%clk 0:00:19.4]} 22. exf5 {[%clk 0:00:23.9]} 22... Ne4 {[%clk 0:00:18.1]} 23. h4 {[%clk 0:00:23.3]} 23... Nxc3 {[%clk 0:00:16.7]} 24. Re3 {[%clk 0:00:22.6]} 24... Nd5 {[%clk 0:00:13.4]} 25. Rg3 {[%clk 0:00:22.1]} 25... Rab8 {[%clk 0:00:12.9]} 26. Bh6 {[%clk 0:00:21.1]} 26... g6 {[%clk 0:00:10.9]} 27. Bxf8 {[%clk 0:00:18.5]} 27... Kxf8 {[%clk 0:00:10.9]} 28. fxg6 {[%clk 0:00:17.1]} 28... fxg6 {[%clk 0:00:10.9]} 29. h5 {[%clk 0:00:16.9]} 29... Kg7 {[%clk 0:00:10]} 30. Kh2 {[%clk 0:00:16.6]} 30... Nf6 {[%clk 0:00:07.3]} 31. hxg6 {[%clk 0:00:14.4]} 31... hxg6 {[%clk 0:00:06.6]} 32. Rf1 {[%clk 0:00:11.9]} 32... Nh5 {[%clk 0:00:06.6]} 33. Re3 {[%clk 0:00:10.6]} 33... Qd7 {[%clk 0:00:05.8]} 34. g3 {[%clk 0:00:08.1]} 34... Nf4 {[%clk 0:00:05.8]} 35. Kg1 {[%clk 0:00:06.1]} 35... Nh3+ {[%clk 0:00:03.6]} 36. Kg2 {[%clk 0:00:04.4]} 36... Ng5 {[%clk 0:00:03.6]} 37. Kg1 {[%clk 0:00:03.5]} 37... Ne6 {[%clk 0:00:03.6]} 38. Re2 {[%clk 0:00:03]} 38... Qe7 {[%clk 0:00:03.2]} 39. Rd2 {[%clk 0:00:02.7]} 39... Rd8 {[%clk 0:00:02.8]} 40. Re2 {[%clk 0:00:02.5]} 40... d5 {[%clk 0:00:01.7]} 41. Rfe1 {[%clk 0:00:02.3]} 41... e4 {[%clk 0:00:01.2]} 42. f3 {[%clk 0:00:01.4]} 42... Nd4 {[%clk 0:00:00.9]} 43. fxe4 {[%clk 0:00:00.4]} 43... dxe4 {[%clk 0:00:00.6]} 0-1

[Event "Live Chess"]
[Site "Chess.com"]
[Date "2010.12.04"]
[Round "-"]
[White "kaiserIV"]
[Black "hipposcottimus"]
[Result "1-0"]
[CurrentPosition "2k2r2/ppp1q1np/1n2p1p1/1N2P3/2P2B2/1P1Q2P1/P6P/3R2K1 b - -"]
[Timezone "UTC"]
[ECO "C31"]
[ECOUrl "https://www.chess.com/openings/Kings-Gambit-Declined-Falkbeer-Blackburne-Attack"]
[UTCDate "2010.12.04"]
[UTCTime "23:41:33"]
[WhiteElo "1596"]
[BlackElo "1574"]
[TimeControl "60"]
[Termination "kaiserIV won on time"]
[StartTime "23:41:33"]
[EndDate "2010.12.04"]
[EndTime "23:43:33"]
[Link "https://www.chess.com/game/live/74112986"]

1. e4 {[%clk 0:01:00]} 1... e5 {[%clk 0:01:00]} 2. f4 {[%clk 0:00:56.6]} 2... d5 {[%clk 0:00:58.4]} 3. Nf3 {[%clk 0:00:56.2]} 3... dxe4 {[%clk 0:00:55]} 4. Nxe5 {[%clk 0:00:55.2]} 4... Nf6 {[%clk 0:00:50.4]} 5. Bc4 {[%clk 0:00:51.4]} 5... Be6 {[%clk 0:00:45.7]} 6. Bxe6 {[%clk 0:00:48.4]} 6... fxe6 {[%clk 0:00:45.5]} 7. Qe2 {[%clk 0:00:46.1]} 7... Bd6 {[%clk 0:00:43.6]} 8. O-O {[%clk 0:00:42.8]} 8... Bxe5 {[%clk 0:00:41.7]} 9. fxe5 {[%clk 0:00:41.8]} 9... Nfd7 {[%clk 0:00:32.5]} 10. Qxe4 {[%clk 0:00:39.9]} 10... Nc6 {[%clk 0:00:32.3]} 11. d4 {[%clk 0:00:35.9]} 11... Qe7 {[%clk 0:00:31.6]} 12. c4 {[%clk 0:00:26.1]} 12... O-O-O {[%clk 0:00:21.1]} 13. Nc3 {[%clk 0:00:24.6]} 13... Nb6 {[%clk 0:00:14.9]} 14. b3 {[%clk 0:00:22]} 14... Nxd4 {[%clk 0:00:13.3]} 15. Rd1 {[%clk 0:00:18.8]} 15... Nf5 {[%clk 0:00:03.3]} 16. Rxd8+ {[%clk 0:00:16.4]} 16... Kxd8 {[%clk 0:00:03.1]} 17. Bf4 {[%clk 0:00:14.9]} 17... Kc8 {[%clk 0:00:02.3]} 18. Rd1 {[%clk 0:00:13.6]} 18... g6 {[%clk 0:00:01.7]} 19. g3 {[%clk 0:00:13.3]} 19... Rf8 {[%clk 0:00:01]} 20. Nb5 {[%clk 0:00:12.8]} 20... Ng7 {[%clk 0:00:00.1]} 21. Qd3 {[%clk 0:00:10.7]} 1-0

[Event "Live Chess"]
[Site "Chess.com"]
[Date "2010.12.04"]
[Round "-"]
[White "sekihmentis"]
[Black "hipposcottimus"]
[Result "1-0"]
[CurrentPosition "2r3k1/6Qp/2P5/3P1p2/P7/6Pq/1B1R4/2K2R2 b - -"]
[Timezone "UTC"]
[ECO "A00"]
[ECOUrl "https://www.chess.com/openings/Van-Geet-Opening-1...d5"]
[UTCDate "2010.12.04"]
[UTCTime "23:34:28"]
[WhiteElo "1333"]
[BlackElo "1590"]
[TimeControl "60"]
[Termination "sekihmentis won by checkmate"]
[StartTime "23:34:28"]
[EndDate "2010.12.04"]
[EndTime "23:36:27"]
[Link "https://www.chess.com/game/live/74111323"]

1. Nc3 {[%clk 0:01:00]} 1... d5 {[%clk 0:01:00]} 2. a3 {[%clk 0:00:59.4]} 2... d4 {[%clk 0:00:59.6]} 3. Nb1 {[%clk 0:00:58.1]} 3... e5 {[%clk 0:00:59.1]} 4. Nf3 {[%clk 0:00:57.4]} 4... e4 {[%clk 0:00:58.6]} 5. Ng1 {[%clk 0:00:56.1]} 5... Nc6 {[%clk 0:00:57.9]} 6. e3 {[%clk 0:00:55.5]} 6... f5 {[%clk 0:00:55.8]} 7. exd4 {[%clk 0:00:54.4]} 7... Nxd4 {[%clk 0:00:55.6]} 8. d3 {[%clk 0:00:52.9]} 8... Nf6 {[%clk 0:00:55.1]} 9. c3 {[%clk 0:00:51.6]} 9... Ne6 {[%clk 0:00:45.3]} 10. b4 {[%clk 0:00:50.7]} 10... Bd6 {[%clk 0:00:43.4]} 11. h3 {[%clk 0:00:50]} 11... Bf4 {[%clk 0:00:43]} 12. Bb2 {[%clk 0:00:48.4]} 12... O-O {[%clk 0:00:39.2]} 13. g3 {[%clk 0:00:47.6]} 13... Bh6 {[%clk 0:00:37.6]} 14. f3 {[%clk 0:00:46.6]} 14... exf3 {[%clk 0:00:36.2]} 15. Nxf3 {[%clk 0:00:45.8]} 15... Nd5 {[%clk 0:00:33.9]} 16. c4 {[%clk 0:00:43.7]} 16... Ne3 {[%clk 0:00:33.1]} 17. Qe2 {[%clk 0:00:41.6]} 17... Nxf1 {[%clk 0:00:32.2]} 18. Rxf1 {[%clk 0:00:40.1]} 18... b6 {[%clk 0:00:26.8]} 19. Nbd2 {[%clk 0:00:39.1]} 19... Bb7 {[%clk 0:00:26.3]} 20. O-O-O {[%clk 0:00:38]} 20... Nd4 {[%clk 0:00:23.2]} 21. Nxd4 {[%clk 0:00:36.1]} 21... Bxd2+ {[%clk 0:00:20.2]} 22. Qxd2 {[%clk 0:00:34.4]} 22... b5 {[%clk 0:00:20.1]} 23. cxb5 {[%clk 0:00:32.9]} 23... a5 {[%clk 0:00:19.8]} 24. bxa5 {[%clk 0:00:31.2]} 24... Rxa5 {[%clk 0:00:19.5]} 25. Qxa5 {[%clk 0:00:28.9]} 25... Qd7 {[%clk 0:00:14.7]} 26. Qc3 {[%clk 0:00:27.9]} 26... c6 {[%clk 0:00:14.1]} 27. Nxc6 {[%clk 0:00:26.5]} 27... Bxc6 {[%clk 0:00:12.9]} 28. bxc6 {[%clk 0:00:24.7]} 28... Qc7 {[%clk 0:00:12.6]} 29. a4 {[%clk 0:00:20.3]} 29... Rc8 {[%clk 0:00:12.3]} 30. d4 {[%clk 0:00:17]} 30... Qd6 {[%clk 0:00:12]} 31. d5 {[%clk 0:00:13.2]} 31... Qh6+ {[%clk 0:00:10.5]} 32. Rd2 {[%clk 0:00:09.4]} 32... Qxh3 {[%clk 0:00:10.2]} 33. Qxg7# {[%clk 0:00:07.7]} 1-0

[Event "Live Chess"]
[Site "Chess.com"]
[Date "2010.12.04"]
[Round "-"]
[White "hipposcottimus"]
[Black "sekihmentis"]
[Result "0-1"]
[CurrentPosition "1r5r/2p2kb1/2N2p2/p1B5/2P5/1P4p1/P3Q1P1/R3R1Kq w - -"]
[Timezone "UTC"]
[ECO "A06"]
[ECOUrl "https://www.chess.com/openings/Reti-Opening-Tennison-Gambit"]
[UTCDate "2010.12.04"]
[UTCTime "23:32:33"]
[WhiteElo "1602"]
[BlackElo "1319"]
[TimeControl "60"]
[Termination "sekihmentis won by checkmate"]
[StartTime "23:32:33"]
[EndDate "2010.12.04"]
[EndTime "23:34:09"]
[Link "https://www.chess.com/game/live/74110875"]

1. e4 {[%clk 0:01:00]} 1... d5 {[%clk 0:01:00]} 2. Nf3 {[%clk 0:00:59.7]} 2... dxe4 {[%clk 0:00:58.9]} 3. Ng5 {[%clk 0:00:59.5]} 3... h6 {[%clk 0:00:57.4]} 4. Nxe4 {[%clk 0:00:56.8]} 4... Nf6 {[%clk 0:00:56]} 5. d3 {[%clk 0:00:56.1]} 5... g5 {[%clk 0:00:55.2]} 6. Nxf6+ {[%clk 0:00:55.1]} 6... exf6 {[%clk 0:00:53.9]} 7. Be2 {[%clk 0:00:54.9]} 7... Bg7 {[%clk 0:00:53.2]} 8. O-O {[%clk 0:00:54.7]} 8... a6 {[%clk 0:00:52.5]} 9. Re1 {[%clk 0:00:54.4]} 9... Nc6 {[%clk 0:00:51.6]} 10. c4 {[%clk 0:00:54.1]} 10... b5 {[%clk 0:00:50.2]} 11. Bg4+ {[%clk 0:00:53.8]} 11... Kf8 {[%clk 0:00:44.3]} 12. Bxc8 {[%clk 0:00:53.2]} 12... Qxc8 {[%clk 0:00:43.3]} 13. Qe2 {[%clk 0:00:52.9]} 13... Rb8 {[%clk 0:00:40.6]} 14. f4 {[%clk 0:00:52.6]} 14... bxc4 {[%clk 0:00:39.3]} 15. fxg5 {[%clk 0:00:51.2]} 15... hxg5 {[%clk 0:00:38.6]} 16. dxc4 {[%clk 0:00:48.1]} 16... a5 {[%clk 0:00:35.9]} 17. Nc3 {[%clk 0:00:47.8]} 17... f5 {[%clk 0:00:33.7]} 18. b3 {[%clk 0:00:47.4]} 18... g4 {[%clk 0:00:32.7]} 19. Bg5 {[%clk 0:00:46.3]} 19... f6 {[%clk 0:00:31.4]} 20. Bf4 {[%clk 0:00:43.3]} 20... g3 {[%clk 0:00:28.1]} 21. Be3 {[%clk 0:00:43]} 21... f4 {[%clk 0:00:27]} 22. Bc5+ {[%clk 0:00:41.3]} 22... Kf7 {[%clk 0:00:21.9]} 23. hxg3 {[%clk 0:00:34.6]} 23... fxg3 {[%clk 0:00:19.8]} 24. Nd5 {[%clk 0:00:32.5]} 24... Qf5 {[%clk 0:00:15.2]} 25. Ne7 {[%clk 0:00:30.4]} 25... Qh7 {[%clk 0:00:09.5]} 26. Nxc6 {[%clk 0:00:29.2]} 26... Qh1# {[%clk 0:00:07.8]} 0-1